[Event "Titled Tuesday Blitz August 09 Early 2022"]
[White "Filippova, Margarita"]
[Black "Senlle Caride, Miguel"]
[WhiteFideId "34199680"]
[BlackFideId "2282500"]
[WhiteElo "1734"]
[BlackElo "2339"]
[Result "1-0"]
[Round "03"]
[TimeControl "180+1"]
[Date "2022.08.09"]
[WhiteClock "0:01:38"]
[BlackClock "0:00:37"]

1. Nf3 {[%clk 0:03:00]}  c5 {[%clk 0:02:59]} 2. c4 {[%clk 0:03:00]}  g6 {[%clk 0:02:59]} 3. d4 {[%clk 0:02:59]}  Bg7 {[%clk 0:03:00]} 4. e4 {[%clk 0:02:54]}  cxd4 {[%clk 0:02:57]} 5. Nxd4 {[%clk 0:02:46]}  d6 {[%clk 0:02:57]} 6. Be3 {[%clk 0:02:45]}  Nf6 {[%clk 0:02:56]} 7. Nc3 {[%clk 0:02:45]}  O-O {[%clk 0:02:54]} 8. Be2 {[%clk 0:02:45]}  Nc6 {[%clk 0:02:49]} 9. O-O {[%clk 0:02:45]}  Nxd4 {[%clk 0:02:46]} 10. Bxd4 {[%clk 0:02:43]}  Be6 {[%clk 0:02:47]} 11. f4 {[%clk 0:02:41]}  Bd7 {[%clk 0:02:43]} 12. Bf3 {[%clk 0:02:38]}  Bc6 {[%clk 0:02:42]} 13. Re1 {[%clk 0:02:35]}  Nd7 {[%clk 0:02:42]} 14. Bxg7 {[%clk 0:02:34]}  Kxg7 {[%clk 0:02:43]} 15. Nd5 {[%clk 0:02:33]}  Bxd5 {[%clk 0:02:36]} 16. exd5 {[%clk 0:02:32]}  Nc5 {[%clk 0:02:34]} 17. Qd4+ {[%clk 0:02:30]}  f6 {[%clk 0:02:34]} 18. b4 {[%clk 0:02:29]}  Nd7 {[%clk 0:02:33]} 19. c5 {[%clk 0:02:25]}  dxc5 {[%clk 0:02:30]} 20. bxc5 {[%clk 0:02:25]}  Rc8 {[%clk 0:02:27]} 21. Rac1 {[%clk 0:02:24]}  Nb8 {[%clk 0:01:47]} 22. Re6 {[%clk 0:02:16]}  Qd7 {[%clk 0:01:18]} 23. Bg4 {[%clk 0:02:09]}  Qc7 {[%clk 0:01:11]} 24. Rce1 {[%clk 0:02:00]}  Rf7 {[%clk 0:01:11]} 25. d6 {[%clk 0:01:51]}  Nc6 {[%clk 0:00:46]} 26. Qd2 {[%clk 0:01:41]}  f5 {[%clk 0:00:37]} 27. dxc7 {[%clk 0:01:38]} 1-0


[Site "https://www.chess.com"]

[Event "Titled Tuesday Blitz August 09 Early 2022"]
[White "Gabdrakhmanov, Azat"]
[Black "Maiorov, Nikita"]
[WhiteFideId "34189197"]
[BlackFideId "13501720"]
[WhiteElo "2293"]
[BlackElo "2409"]
[Result "1-0"]
[Round "03"]
[TimeControl "180+1"]
[Date "2022.08.09"]
[WhiteClock "0:00:17"]
[BlackClock "0:00:18"]

1. e4 {[%clk 0:03:00]}  g6 {[%clk 0:02:58]} 2. d4 {[%clk 0:03:01]}  Bg7 {[%clk 0:02:58]} 3. Nc3 {[%clk 0:03:01]}  d6 {[%clk 0:02:58]} 4. f4 {[%clk 0:03:01]}  Nf6 {[%clk 0:02:57]} 5. Nf3 {[%clk 0:03:01]}  O-O {[%clk 0:02:55]} 6. Bd3 {[%clk 0:03:02]}  Na6 {[%clk 0:02:54]} 7. e5 {[%clk 0:03:01]}  Nd7 {[%clk 0:02:53]} 8. Ne2 {[%clk 0:02:42]}  c5 {[%clk 0:02:47]} 9. c3 {[%clk 0:02:42]}  cxd4 {[%clk 0:02:42]} 10. cxd4 {[%clk 0:02:40]}  Nb6 {[%clk 0:02:34]} 11. O-O {[%clk 0:02:39]}  Nb4 {[%clk 0:02:27]} 12. Be4 {[%clk 0:02:37]}  N4d5 {[%clk 0:02:22]} 13. a4 {[%clk 0:02:26]}  a5 {[%clk 0:02:21]} 14. Nc3 {[%clk 0:02:19]}  Nxc3 {[%clk 0:02:11]} 15. bxc3 {[%clk 0:02:19]}  Qc7 {[%clk 0:02:11]} 16. Bd2 {[%clk 0:01:59]}  Be6 {[%clk 0:02:09]} 17. Kh1 {[%clk 0:01:58]}  Bd5 {[%clk 0:02:09]} 18. Bxd5 {[%clk 0:01:51]}  Nxd5 {[%clk 0:02:08]} 19. Qb3 {[%clk 0:01:51]}  Nb6 {[%clk 0:01:56]} 20. Rab1 {[%clk 0:01:42]}  Ra6 {[%clk 0:01:56]} 21. e6 {[%clk 0:01:36]}  f5 {[%clk 0:01:51]} 22. Be1 {[%clk 0:01:22]}  Rb8 {[%clk 0:01:49]} 23. Bh4 {[%clk 0:01:20]}  Bf8 {[%clk 0:01:28]} 24. Nd2 {[%clk 0:01:20]}  d5 {[%clk 0:01:25]} 25. g4 {[%clk 0:01:07]}  fxg4 {[%clk 0:01:17]} 26. f5 {[%clk 0:01:08]}  Qc6 {[%clk 0:01:02]} 27. Qd1 {[%clk 0:00:41]}  Nc4 {[%clk 0:00:45]} 28. Nxc4 {[%clk 0:00:37]}  dxc4+ {[%clk 0:00:45]} 29. d5 {[%clk 0:00:36]}  Qc5 {[%clk 0:00:41]} 30. fxg6 {[%clk 0:00:31]}  hxg6 {[%clk 0:00:39]} 31. Bf2 {[%clk 0:00:28]}  Qc8 {[%clk 0:00:27]} 32. Qxg4 {[%clk 0:00:26]}  Qe8 {[%clk 0:00:27]} 33. Bd4 {[%clk 0:00:23]}  Rd8 {[%clk 0:00:24]} 34. Rf7 {[%clk 0:00:21]}  Qxf7 {[%clk 0:00:24]} 35. exf7+ {[%clk 0:00:21]}  Kxf7 {[%clk 0:00:24]} 36. Rf1+ {[%clk 0:00:21]}  Ke8 {[%clk 0:00:21]} 37. Qe4 {[%clk 0:00:20]}  Rad6 {[%clk 0:00:20]} 38. Rb1 {[%clk 0:00:17]}  Rxd5 {[%clk 0:00:19]} 39. Qxg6+ {[%clk 0:00:17]}  Kd7 {[%clk 0:00:18]} 40. Rxb7+ {[%clk 0:00:17]} 1-0


[Site "https://www.chess.com"]

[Event "Titled Tuesday Blitz August 09 Early 2022"]
[White "Garcia, Erick"]
[Black "Zhukov, Maksim"]
[WhiteFideId "2058880"]
[BlackFideId "34181790"]
[WhiteElo "2202"]
[BlackElo "1978"]
[Result "1-0"]
[Round "03"]
[TimeControl "180+1"]
[Date "2022.08.09"]
[WhiteClock "0:01:28"]
[BlackClock "0:00:14"]

1. d4 {[%clk 0:03:00]}  d5 {[%clk 0:02:43]} 2. c4 {[%clk 0:03:00]}  e6 {[%clk 0:02:43]} 3. Nf3 {[%clk 0:03:01]}  c6 {[%clk 0:02:44]} 4. e3 {[%clk 0:02:59]}  Nf6 {[%clk 0:02:44]} 5. Bd3 {[%clk 0:02:56]}  Nbd7 {[%clk 0:02:32]} 6. Nbd2 {[%clk 0:02:55]}  Bd6 {[%clk 0:02:31]} 7. b3 {[%clk 0:02:54]}  O-O {[%clk 0:02:31]} 8. Bb2 {[%clk 0:02:55]}  Re8 {[%clk 0:02:31]} 9. O-O {[%clk 0:02:49]}  dxc4 {[%clk 0:02:32]} 10. Nxc4 {[%clk 0:02:48]}  Bc7 {[%clk 0:02:32]} 11. e4 {[%clk 0:02:46]}  b5 {[%clk 0:02:32]} 12. Ne3 {[%clk 0:02:46]}  Bb7 {[%clk 0:02:31]} 13. e5 {[%clk 0:02:38]}  Nd5 {[%clk 0:02:29]} 14. Nxd5 {[%clk 0:02:38]}  exd5 {[%clk 0:02:28]} 15. Qc2 {[%clk 0:02:36]}  h6 {[%clk 0:02:20]} 16. g3 {[%clk 0:02:35]}  a6 {[%clk 0:01:56]} 17. Nh4 {[%clk 0:02:31]}  Rc8 {[%clk 0:01:46]} 18. Nf5 {[%clk 0:02:29]}  c5 {[%clk 0:01:31]} 19. Qe2 {[%clk 0:02:27]}  cxd4 {[%clk 0:01:28]} 20. f4 {[%clk 0:02:26]}  Nc5 {[%clk 0:01:24]} 21. Qg4 {[%clk 0:02:13]}  Ne6 {[%clk 0:00:51]} 22. Nxh6+ {[%clk 0:02:08]}  Kf8 {[%clk 0:00:51]} 23. f5 {[%clk 0:01:55]}  Ng5 {[%clk 0:00:17]} 24. f6 {[%clk 0:01:43]}  gxh6 {[%clk 0:00:18]} 25. h4 {[%clk 0:01:41]}  Rxe5 {[%clk 0:00:16]} 26. Bxd4 {[%clk 0:01:37]}  Bb6 {[%clk 0:00:14]} 27. hxg5 {[%clk 0:01:29]}  Rf5 {[%clk 0:00:14]} 28. Rxf5 {[%clk 0:01:28]} 1-0


[Site "https://www.chess.com"]

[Event "Titled Tuesday Blitz August 09 Early 2022"]
[White "Gardezi, Arsal"]
[Black "D`Arruda, Ricardo D."]
[WhiteFideId "30949521"]
[BlackFideId "100692"]
[WhiteElo "1781"]
[BlackElo "2463"]
[Result "0-1"]
[Round "03"]
[TimeControl "180+1"]
[Date "2022.08.09"]
[WhiteClock "0:00:01"]
[BlackClock "0:00:04"]

1. Nf3 {[%clk 0:03:00]}  d5 {[%clk 0:02:59]} 2. g3 {[%clk 0:03:01]}  Nf6 {[%clk 0:02:59]} 3. Bg2 {[%clk 0:03:00]}  g6 {[%clk 0:03:00]} 4. d4 {[%clk 0:02:54]}  Bg7 {[%clk 0:03:01]} 5. O-O {[%clk 0:02:51]}  O-O {[%clk 0:03:02]} 6. c4 {[%clk 0:02:51]}  c6 {[%clk 0:03:02]} 7. Nc3 {[%clk 0:02:51]}  Ne4 {[%clk 0:03:00]} 8. Ne5 {[%clk 0:02:34]}  Nd7 {[%clk 0:02:43]} 9. Nxd7 {[%clk 0:02:29]}  Nxc3 {[%clk 0:02:39]} 10. bxc3 {[%clk 0:02:27]}  Qxd7 {[%clk 0:02:40]} 11. cxd5 {[%clk 0:02:26]}  cxd5 {[%clk 0:02:39]} 12. Rb1 {[%clk 0:02:20]}  b6 {[%clk 0:02:39]} 13. a4 {[%clk 0:02:19]}  Ba6 {[%clk 0:02:33]} 14. Re1 {[%clk 0:02:18]}  Rac8 {[%clk 0:02:29]} 15. Bd2 {[%clk 0:02:16]}  Bc4 {[%clk 0:02:19]} 16. e4 {[%clk 0:02:07]}  Bd3 {[%clk 0:02:14]} 17. Rb4 {[%clk 0:01:59]}  Bxe4 {[%clk 0:02:13]} 18. Bxe4 {[%clk 0:02:00]}  dxe4 {[%clk 0:02:13]} 19. Rxe4 {[%clk 0:02:01]}  e6 {[%clk 0:02:11]} 20. Rb3 {[%clk 0:01:46]}  Qxa4 {[%clk 0:02:09]} 21. Qb1 {[%clk 0:01:35]}  Rc4 {[%clk 0:01:57]} 22. Qb2 {[%clk 0:01:30]}  Rfc8 {[%clk 0:01:54]} 23. Ra3 {[%clk 0:01:29]}  Qd7 {[%clk 0:01:53]} 24. Qa2 {[%clk 0:01:28]}  a5 {[%clk 0:01:45]} 25. Qb2 {[%clk 0:01:25]}  R8c6 {[%clk 0:01:26]} 26. Rb3 {[%clk 0:01:19]}  Qd8 {[%clk 0:01:24]} 27. Re1 {[%clk 0:00:57]}  a4 {[%clk 0:01:18]} 28. Rb4 {[%clk 0:00:56]}  Bf8 {[%clk 0:01:10]} 29. Rxc4 {[%clk 0:00:54]}  Rxc4 {[%clk 0:01:11]} 30. Qb5 {[%clk 0:00:54]}  Qc7 {[%clk 0:01:05]} 31. Ra1 {[%clk 0:00:49]}  a3 {[%clk 0:01:01]} 32. Bf4 {[%clk 0:00:44]}  Qc6 {[%clk 0:01:00]} 33. Qxc6 {[%clk 0:00:43]}  Rxc6 {[%clk 0:01:01]} 34. Bd2 {[%clk 0:00:42]}  Rc4 {[%clk 0:00:56]} 35. Kf1 {[%clk 0:00:40]}  Bd6 {[%clk 0:00:36]} 36. Ke2 {[%clk 0:00:38]}  Kf8 {[%clk 0:00:34]} 37. Kd3 {[%clk 0:00:37]}  b5 {[%clk 0:00:35]} 38. Ra2 {[%clk 0:00:30]}  Ke7 {[%clk 0:00:33]} 39. Bc1 {[%clk 0:00:26]}  Ra4 {[%clk 0:00:33]} 40. Kc2 {[%clk 0:00:26]}  Kd7 {[%clk 0:00:29]} 41. Kb3 {[%clk 0:00:26]}  Kc6 {[%clk 0:00:28]} 42. Bxa3 {[%clk 0:00:22]}  Bc7 {[%clk 0:00:20]} 43. Re2 {[%clk 0:00:11]}  Kd5 {[%clk 0:00:18]} 44. Re1 {[%clk 0:00:10]}  Bb6 {[%clk 0:00:14]} 45. Re5+ {[%clk 0:00:07]}  Kc6 {[%clk 0:00:14]} 46. Bb4 {[%clk 0:00:07]}  Bc7 {[%clk 0:00:14]} 47. Re1 {[%clk 0:00:07]}  Kd5 {[%clk 0:00:12]} 48. Kb2 {[%clk 0:00:05]}  Bb8 {[%clk 0:00:11]} 49. Kb3 {[%clk 0:00:05]}  f6 {[%clk 0:00:11]} 50. Kb2 {[%clk 0:00:05]}  f5 {[%clk 0:00:11]} 51. Kb3 {[%clk 0:00:06]}  g5 {[%clk 0:00:12]} 52. f3 {[%clk 0:00:06]}  h5 {[%clk 0:00:10]} 53. Rg1 {[%clk 0:00:05]}  g4 {[%clk 0:00:10]} 54. f4 {[%clk 0:00:04]}  Bd6 {[%clk 0:00:08]} 55. Re1 {[%clk 0:00:05]}  Bxb4 {[%clk 0:00:07]} 56. cxb4 {[%clk 0:00:03]}  Kxd4 {[%clk 0:00:05]} 57. Rxe6 {[%clk 0:00:02]}  Ra1 {[%clk 0:00:06]} 58. Re2 {[%clk 0:00:01]}  Rb1+ {[%clk 0:00:05]} 59. Kc2 {[%clk 0:00:01]}  Rxb4 {[%clk 0:00:05]} 60. Rd2+ {[%clk 0:00:02]}  Ke3 {[%clk 0:00:05]} 61. Rd8 {[%clk 0:00:01]}  Ra4 {[%clk 0:00:04]} 62. Kb3 {[%clk 0:00:01]}  Ra1 {[%clk 0:00:04]} 0-1


[Site "https://www.chess.com"]

[Event "Titled Tuesday Blitz August 09 Early 2022"]
[White "Gareyev, Timur"]
[Black "Zemlyanskii, Ivan"]
[WhiteFideId "14200937"]
[BlackFideId "24249971"]
[WhiteElo "2865"]
[BlackElo "2674"]
[Result "1-0"]
[Round "03"]
[TimeControl "180+1"]
[Date "2022.08.09"]
[WhiteClock "0:01:04"]
[BlackClock "0:01:21"]

1. d4 {[%clk 0:02:54]}  Nf6 {[%clk 0:02:59]} 2. c4 {[%clk 0:02:53]}  e6 {[%clk 0:02:59]} 3. Nc3 {[%clk 0:02:53]}  Bb4 {[%clk 0:02:59]} 4. Qc2 {[%clk 0:02:53]}  c5 {[%clk 0:02:58]} 5. dxc5 {[%clk 0:02:52]}  O-O {[%clk 0:02:58]} 6. a3 {[%clk 0:02:50]}  Bxc5 {[%clk 0:02:57]} 7. Nf3 {[%clk 0:02:51]}  Nc6 {[%clk 0:02:57]} 8. Bf4 {[%clk 0:02:49]}  d5 {[%clk 0:02:56]} 9. e3 {[%clk 0:02:37]}  Qe7 {[%clk 0:02:35]} 10. Bg5 {[%clk 0:02:27]}  Rd8 {[%clk 0:02:31]} 11. O-O-O {[%clk 0:02:17]}  dxc4 {[%clk 0:02:23]} 12. Bxc4 {[%clk 0:02:11]}  h6 {[%clk 0:02:21]} 13. Bxf6 {[%clk 0:02:03]}  Qxf6 {[%clk 0:02:18]} 14. Ne4 {[%clk 0:02:01]}  Qe7 {[%clk 0:02:16]} 15. Rxd8+ {[%clk 0:01:39]}  Nxd8 {[%clk 0:02:15]} 16. Rd1 {[%clk 0:01:35]}  Nc6 {[%clk 0:02:14]} 17. Kb1 {[%clk 0:01:28]}  e5 {[%clk 0:02:01]} 18. Nxc5 {[%clk 0:01:27]}  Bg4 {[%clk 0:01:53]} 19. h3 {[%clk 0:01:19]}  Bh5 {[%clk 0:01:52]} 20. Rd7 {[%clk 0:01:16]}  Qe8 {[%clk 0:01:39]} 21. Qf5 {[%clk 0:01:13]}  Bg6 {[%clk 0:01:21]} 22. Qxg6 {[%clk 0:01:04]} 1-0


[Site "https://www.chess.com"]

[Event "Titled Tuesday Blitz August 09 Early 2022"]
[White "Ginzburg, Yakov"]
[Black "Shimanov, Aleksandr"]
[WhiteFideId "4157176"]
[BlackFideId "4198603"]
[WhiteElo "2265"]
[BlackElo "2605"]
[Result "1-0"]
[Round "03"]
[TimeControl "180+1"]
[Date "2022.08.09"]
[WhiteClock "0:00:06"]
[BlackClock "0:00:01"]

1. e4 {[%clk 0:02:57]}  c6 {[%clk 0:02:57]} 2. d4 {[%clk 0:02:56]}  d5 {[%clk 0:02:57]} 3. Nc3 {[%clk 0:02:54]}  dxe4 {[%clk 0:02:55]} 4. Nxe4 {[%clk 0:02:53]}  Bf5 {[%clk 0:02:56]} 5. Ng3 {[%clk 0:02:52]}  Bg6 {[%clk 0:02:56]} 6. h4 {[%clk 0:02:50]}  h6 {[%clk 0:02:56]} 7. Nf3 {[%clk 0:02:49]}  Nd7 {[%clk 0:02:51]} 8. h5 {[%clk 0:02:48]}  Bh7 {[%clk 0:02:51]} 9. Bd3 {[%clk 0:02:48]}  Bxd3 {[%clk 0:02:52]} 10. Qxd3 {[%clk 0:02:49]}  e6 {[%clk 0:02:52]} 11. Bf4 {[%clk 0:02:47]}  Qa5+ {[%clk 0:02:50]} 12. Bd2 {[%clk 0:02:46]}  Bb4 {[%clk 0:02:51]} 13. c3 {[%clk 0:02:46]}  Be7 {[%clk 0:02:51]} 14. c4 {[%clk 0:02:44]}  Qc7 {[%clk 0:02:51]} 15. O-O-O {[%clk 0:02:42]}  Ngf6 {[%clk 0:02:50]} 16. Ne4 {[%clk 0:02:37]}  O-O {[%clk 0:02:44]} 17. g4 {[%clk 0:02:36]}  Nxg4 {[%clk 0:02:43]} 18. Rhg1 {[%clk 0:02:34]}  f5 {[%clk 0:02:43]} 19. Nc3 {[%clk 0:01:55]}  Bf6 {[%clk 0:02:37]} 20. Qe2 {[%clk 0:01:49]}  Rae8 {[%clk 0:02:37]} 21. Kb1 {[%clk 0:01:30]}  Kh8 {[%clk 0:02:35]} 22. Rg2 {[%clk 0:01:17]}  e5 {[%clk 0:02:31]} 23. d5 {[%clk 0:01:14]}  e4 {[%clk 0:02:29]} 24. Ng1 {[%clk 0:01:02]}  Nde5 {[%clk 0:02:22]} 25. f3 {[%clk 0:00:56]}  exf3 {[%clk 0:01:59]} 26. Nxf3 {[%clk 0:00:55]}  Qf7 {[%clk 0:01:52]} 27. Nd4 {[%clk 0:00:52]}  Qxh5 {[%clk 0:01:36]} 28. Ne6 {[%clk 0:00:51]}  Rxe6 {[%clk 0:01:27]} 29. dxe6 {[%clk 0:00:50]}  Re8 {[%clk 0:01:27]} 30. Bf4 {[%clk 0:00:48]}  Rxe6 {[%clk 0:01:27]} 31. Rd7 {[%clk 0:00:42]}  Qe8 {[%clk 0:01:21]} 32. Rxb7 {[%clk 0:00:40]}  Kh7 {[%clk 0:01:06]} 33. Qc2 {[%clk 0:00:40]}  Qh5 {[%clk 0:01:01]} 34. Nd1 {[%clk 0:00:26]}  Ng6 {[%clk 0:00:52]} 35. Bc1 {[%clk 0:00:23]}  Re3 {[%clk 0:00:33]} 36. Nxe3 {[%clk 0:00:20]}  Nxe3 {[%clk 0:00:28]} 37. Bxe3 {[%clk 0:00:20]}  Qh1+ {[%clk 0:00:26]} 38. Bc1 {[%clk 0:00:20]}  Nh4 {[%clk 0:00:24]} 39. Re2 {[%clk 0:00:18]}  Qf3 {[%clk 0:00:24]} 40. Re3 {[%clk 0:00:18]}  Qg4 {[%clk 0:00:24]} 41. Rxa7 {[%clk 0:00:17]}  Ng6 {[%clk 0:00:22]} 42. Rd3 {[%clk 0:00:17]}  h5 {[%clk 0:00:22]} 43. a3 {[%clk 0:00:17]}  h4 {[%clk 0:00:22]} 44. Rd6 {[%clk 0:00:17]}  Be5 {[%clk 0:00:21]} 45. Rdd7 {[%clk 0:00:17]}  h3 {[%clk 0:00:21]} 46. Qd1 {[%clk 0:00:12]}  Qe4+ {[%clk 0:00:20]} 47. Ka1 {[%clk 0:00:12]}  Qg4 {[%clk 0:00:19]} 48. Qe1 {[%clk 0:00:11]}  h2 {[%clk 0:00:17]} 49. Re7 {[%clk 0:00:10]}  Qg3 {[%clk 0:00:11]} 50. Rxg7+ {[%clk 0:00:08]}  Kh8 {[%clk 0:00:09]} 51. Qxg3 {[%clk 0:00:08]}  Bxg3 {[%clk 0:00:09]} 52. Rh7+ {[%clk 0:00:08]}  Kg8 {[%clk 0:00:09]} 53. Rag7+ {[%clk 0:00:07]}  Kf8 {[%clk 0:00:09]} 54. Rxg6 {[%clk 0:00:08]}  f4 {[%clk 0:00:09]} 55. Rg4 {[%clk 0:00:07]}  c5 {[%clk 0:00:04]} 56. Bxf4 {[%clk 0:00:07]}  Bh4 {[%clk 0:00:01]} 57. Rhxh4 {[%clk 0:00:06]} 1-0


[Site "https://www.chess.com"]

[Event "Titled Tuesday Blitz August 09 Early 2022"]
[White "Goldin, Roman"]
[Black "Kiseljova, Marya"]
[WhiteFideId "2803860"]
[BlackFideId "4155009"]
[WhiteElo "2312"]
[BlackElo "1697"]
[Result "1-0"]
[Round "03"]
[TimeControl "180+1"]
[Date "2022.08.09"]
[WhiteClock "0:00:27"]
[BlackClock "0:00:02"]

1. e4 {[%clk 0:03:00]}  c5 {[%clk 0:02:57]} 2. Nf3 {[%clk 0:02:59]}  Nc6 {[%clk 0:02:57]} 3. c3 {[%clk 0:02:58]}  Nf6 {[%clk 0:02:53]} 4. e5 {[%clk 0:02:57]}  Nd5 {[%clk 0:02:54]} 5. g3 {[%clk 0:02:57]}  d6 {[%clk 0:02:53]} 6. exd6 {[%clk 0:02:55]}  Qxd6 {[%clk 0:02:51]} 7. Bg2 {[%clk 0:02:54]}  Bg4 {[%clk 0:02:41]} 8. O-O {[%clk 0:02:53]}  h5 {[%clk 0:02:34]} 9. h3 {[%clk 0:02:47]}  Bf5 {[%clk 0:02:24]} 10. d4 {[%clk 0:02:46]}  O-O-O {[%clk 0:02:15]} 11. dxc5 {[%clk 0:02:22]}  Qxc5 {[%clk 0:02:15]} 12. Qe2 {[%clk 0:02:04]}  e6 {[%clk 0:01:50]} 13. b4 {[%clk 0:02:00]}  Nxc3 {[%clk 0:01:43]} 14. Nxc3 {[%clk 0:01:57]}  Qxc3 {[%clk 0:01:43]} 15. b5 {[%clk 0:01:43]}  Bd3 {[%clk 0:01:21]} 16. Qe3 {[%clk 0:01:20]}  Bc5 {[%clk 0:01:19]} 17. bxc6 {[%clk 0:01:17]}  Bxe3 {[%clk 0:01:18]} 18. cxb7+ {[%clk 0:01:14]}  Kb8 {[%clk 0:01:04]} 19. Bxe3 {[%clk 0:01:12]}  Bxf1 {[%clk 0:00:47]} 20. Rxf1 {[%clk 0:01:12]}  e5 {[%clk 0:00:42]} 21. Nxe5 {[%clk 0:01:09]}  Qxe5 {[%clk 0:00:18]} 22. Bf4 {[%clk 0:01:06]}  Qxf4 {[%clk 0:00:19]} 23. gxf4 {[%clk 0:01:06]}  Rd4 {[%clk 0:00:18]} 24. Re1 {[%clk 0:00:49]}  Rxf4 {[%clk 0:00:18]} 25. Re7 {[%clk 0:00:49]}  Rxf2 {[%clk 0:00:17]} 26. Kxf2 {[%clk 0:00:41]}  Rf8 {[%clk 0:00:17]} 27. Ke3 {[%clk 0:00:38]}  g6 {[%clk 0:00:15]} 28. Kf4 {[%clk 0:00:37]}  f6 {[%clk 0:00:15]} 29. Bd5 {[%clk 0:00:32]}  Rd8 {[%clk 0:00:12]} 30. Ke4 {[%clk 0:00:32]}  g5 {[%clk 0:00:06]} 31. Rh7 {[%clk 0:00:29]}  h4 {[%clk 0:00:06]} 32. Rf7 {[%clk 0:00:29]}  Re8+ {[%clk 0:00:04]} 33. Kd4 {[%clk 0:00:27]}  Rd8 {[%clk 0:00:02]} 34. Rxf6 {[%clk 0:00:27]}  Kc7 {[%clk 0:00:02]} 35. Rg6 {[%clk 0:00:27]} 1-0


[Site "https://www.chess.com"]

[Event "Titled Tuesday Blitz August 09 Early 2022"]
[White "Gurel, Ediz"]
[Black "Calugar, Arthur"]
[WhiteFideId "44507356"]
[BlackFideId "2606933"]
[WhiteElo "2825"]
[BlackElo "2657"]
[Result "1-0"]
[Round "03"]
[TimeControl "180+1"]
[Date "2022.08.09"]
[WhiteClock "0:00:14"]
[BlackClock "0:00:17"]

1. e4 {[%clk 0:03:00]}  c5 {[%clk 0:02:13]} 2. Nf3 {[%clk 0:02:59]}  Nc6 {[%clk 0:02:14]} 3. d4 {[%clk 0:03:00]}  cxd4 {[%clk 0:02:15]} 4. Nxd4 {[%clk 0:03:00]}  Nf6 {[%clk 0:02:14]} 5. Nc3 {[%clk 0:03:01]}  d6 {[%clk 0:02:15]} 6. Bg5 {[%clk 0:03:00]}  e6 {[%clk 0:02:15]} 7. Qd2 {[%clk 0:03:01]}  a6 {[%clk 0:02:16]} 8. Nxc6 {[%clk 0:03:01]}  bxc6 {[%clk 0:02:16]} 9. O-O-O {[%clk 0:03:02]}  h6 {[%clk 0:02:10]} 10. Bf4 {[%clk 0:03:00]}  d5 {[%clk 0:02:07]} 11. Qe3 {[%clk 0:03:00]}  Be7 {[%clk 0:02:04]} 12. Bd3 {[%clk 0:02:58]}  d4 {[%clk 0:02:02]} 13. Qf3 {[%clk 0:02:27]}  dxc3 {[%clk 0:02:01]} 14. g4 {[%clk 0:02:21]}  Qa5 {[%clk 0:01:55]} 15. Kb1 {[%clk 0:02:12]}  e5 {[%clk 0:01:49]} 16. Bc1 {[%clk 0:01:29]}  Bxg4 {[%clk 0:01:26]} 17. Qg3 {[%clk 0:01:29]}  Bxd1 {[%clk 0:01:25]} 18. Rxd1 {[%clk 0:01:30]}  g6 {[%clk 0:01:20]} 19. Bc4 {[%clk 0:01:25]}  cxb2 {[%clk 0:01:13]} 20. Bd2 {[%clk 0:01:14]}  Qc5 {[%clk 0:01:12]} 21. Qb3 {[%clk 0:00:58]}  O-O {[%clk 0:01:10]} 22. Rg1 {[%clk 0:00:53]}  Kg7 {[%clk 0:01:08]} 23. Bxh6+ {[%clk 0:00:42]}  Kxh6 {[%clk 0:01:06]} 24. Bxf7 {[%clk 0:00:43]}  Rxf7 {[%clk 0:00:37]} 25. Qxf7 {[%clk 0:00:39]}  Rg8 {[%clk 0:00:37]} 26. Rg3 {[%clk 0:00:31]}  Rg7 {[%clk 0:00:37]} 27. Rh3+ {[%clk 0:00:22]}  Nh5 {[%clk 0:00:38]} 28. Qe8 {[%clk 0:00:23]}  Qxf2 {[%clk 0:00:28]} 29. Rb3 {[%clk 0:00:18]}  Bc5 {[%clk 0:00:26]} 30. Kxb2 {[%clk 0:00:14]}  Bd4+ {[%clk 0:00:25]} 31. Ka3 {[%clk 0:00:15]}  Qxc2 {[%clk 0:00:24]} 32. Qh8+ {[%clk 0:00:15]}  Rh7 {[%clk 0:00:25]} 33. Qf8+ {[%clk 0:00:16]}  Rg7 {[%clk 0:00:23]} 34. Qh8+ {[%clk 0:00:15]}  Kg5 {[%clk 0:00:24]} 35. Qd8+ {[%clk 0:00:15]}  Kg4 {[%clk 0:00:23]} 36. h3+ {[%clk 0:00:14]}  Kf4 {[%clk 0:00:17]} 37. Qh4# {[%clk 0:00:14]} 1-0


[Site "https://www.chess.com"]

[Event "Titled Tuesday Blitz August 09 Early 2022"]
[White "Gurevich, Dmitry"]
[Black "Ziatdinov, Raset"]
[WhiteFideId "2000407"]
[BlackFideId "2015323"]
[WhiteElo "2506"]
[BlackElo "2220"]
[Result "1-0"]
[Round "03"]
[TimeControl "180+1"]
[Date "2022.08.09"]
[WhiteClock "0:02:13"]
[BlackClock "0:02:05"]

1. d4 {[%clk 0:02:58]}  Nf6 {[%clk 0:03:00]} 2. c4 {[%clk 0:02:58]}  g6 {[%clk 0:03:00]} 3. Nc3 {[%clk 0:02:57]}  Bg7 {[%clk 0:03:01]} 4. e4 {[%clk 0:02:57]}  d6 {[%clk 0:03:01]} 5. Nf3 {[%clk 0:02:57]}  O-O {[%clk 0:03:02]} 6. Be2 {[%clk 0:02:57]}  e5 {[%clk 0:03:01]} 7. O-O {[%clk 0:02:57]}  Nc6 {[%clk 0:03:01]} 8. d5 {[%clk 0:02:57]}  Ne7 {[%clk 0:03:01]} 9. Ne1 {[%clk 0:02:57]}  Ne8 {[%clk 0:03:01]} 10. Be3 {[%clk 0:02:57]}  f5 {[%clk 0:03:01]} 11. f3 {[%clk 0:02:57]}  Nf6 {[%clk 0:02:59]} 12. c5 {[%clk 0:02:55]}  c6 {[%clk 0:02:48]} 13. dxc6 {[%clk 0:02:50]}  bxc6 {[%clk 0:02:49]} 14. cxd6 {[%clk 0:02:49]}  Ned5 {[%clk 0:02:18]} 15. exd5 {[%clk 0:02:38]}  cxd5 {[%clk 0:02:17]} 16. Nxd5 {[%clk 0:02:35]}  Qxd6 {[%clk 0:02:15]} 17. Nxf6+ {[%clk 0:02:31]}  Qxf6 {[%clk 0:02:16]} 18. Rc1 {[%clk 0:02:25]}  Be6 {[%clk 0:02:13]} 19. Rc6 {[%clk 0:02:23]}  Qf7 {[%clk 0:02:09]} 20. b3 {[%clk 0:02:19]}  Bd5 {[%clk 0:02:06]} 21. Rd6 {[%clk 0:02:14]}  Be6 {[%clk 0:02:05]} 22. Rxe6 {[%clk 0:02:13]} 1-0


[Site "https://www.chess.com"]